bitfinex-derivatives/quotes_ETHF0:USTF0_20250212
["timestamp","ask_amount","ask_price","bid_price","bid_amount"]
[1739374562754,0.00575783,2604.5,2604.1,3.2078]
[1739374563156,0.76802,2604.3,2604.1,3.97583]
[1739374563358,0.00575783,2604.5,2604.2,0.768]
[1739374563359,0.76796,2604.4,2604.2,0.768]
[1739374563658,0.00575783,2604.5,2604.4,0.76796]
[1739374563852,0.00575783,2604.5,2604.3,0.6086]
[1739374564161,0.76801,2604.3,2604.1,3.2078]
[1739374564559,0.00575783,2604.5,2604.2,5.01452132]
[1739374564754,0.00575783,2604.5,2604.4,3.97576]
[1739374565666,0.00575783,2604.5,2604.4,3.2078]
[1739374566157,0.00575783,2604.5,2604.4,3.97576]
[1739374566764,3.2078,2605.4,2604.4,14.20848683]
[1739374567056,3.2078,2605.4,2604.4,8.20848683]
[1739374567057,1.91926,2605.3,2604.4,8.20848683]
[1739374567251,1.91934,2605.2,2604.5,0.76793]
[1739374567456,0.7679,2604.7,2604.4,8.97643683]
[1739374567652,0.76794,2604.5,2604.4,3.2078]
[1739374569067,0.00575783,2604.7,2604.4,3.2078]
[1739374569363,0.76794,2604.5,2604.4,3.2078]
[1739374569560,0.76791,2604.6,2604.4,3.97575]
[1739374569758,0.00575783,2604.7,2604.6,0.76791]
[1739374569962,4.47049166,2605.8,2604.6,0.76791]
[1739374569963,3.2078,2605.7,2604.6,0.76791]
[1739374570264,1.91879,2606.0,2605.1,3.2078]
[1739374570566,1.91889,2605.8,2604.9,2.091]
[1739374570759,3.2078,2605.9,2605.2,5.03478545]
[1739374571068,0.76763,2605.6,2605.4,0.76765]
[1739374571361,0.00575783,2605.8,2605.4,3.2078]
[1739374571564,0.77330783,2605.8,2605.6,0.7676]
[1739374571756,0.00575783,2605.8,2605.5,4.9705327]
[1739374571957,0.76736,2606.5,2606.1,0.76744]
[1739374572154,3.2078,2607.2,2606.0,3.2078]
[1739374572358,6.38850166,2607.0,2606.0,3.2078]
[1739374572559,0.76739,2606.4,2606.0,3.97528]
[1739374572765,3.2078,2606.6,2606.0,3.2078]
[1739374572965,3.2078,2606.8,2606.0,3.2078]
[1739374573264,0.00383852,2606.6,2606.3,0.76739]
[1739374573461,0.76754,2605.9,2605.7,0.79810205]
[1739374573667,3.2078,2606.2,2605.7,0.79810205]
[1739374573961,8.48266018,2606.6,2605.7,4.00590205]
[1739374573962,0.76749,2606.0,2605.7,4.00590205]
[1739374574169,3.2078,2606.5,2605.7,4.00590205]
[1739374574463,3.2078,2606.5,2605.8,4.9761891]
[1739374574764,0.00383852,2606.6,2606.3,0.7674]
[1739374575165,0.00383852,2606.6,2606.5,0.76735]
[1739374575671,0.6012,2607.7,2606.5,4.95955512]
[1739374575855,0.6012,2607.7,2606.6,3.2078]
[1739374576060,0.76718,2607.1,2606.9,3.2078]
[1739374576462,0.6012,2607.7,2606.9,3.2078]
[1739374576957,5.2978,2608.1,2607.2,3.2078]
[1739374577259,0.76698,2607.8,2607.4,0.76707]
[1739374577464,0.76692,2608.0,2607.6,0.76701]
[1739374577663,0.76696,2607.9,2607.5,3.97483]
[1739374577866,0.76696,2607.9,2607.5,8.41369197]
[1739374578463,0.76683,2608.3,2607.9,0.76693]
[1739374578671,3.2078,2608.5,2607.8,3.2078]
[1739374578866,3.2078,2608.5,2608.0,4.8732408]
[1739374579060,3.2078,2608.2,2607.5,3.40357508]
[1739374579366,3.2078,2608.3,2607.5,3.40357508]
[1739374579668,0.76681,2608.4,2607.8,3.2078]
[1739374579967,0.5992,2608.8,2607.9,4.8919698]
[1739374580165,0.7669,2608.1,2607.9,4.8919698]
[1739374580562,0.7669,2608.1,2607.8,0.00575783]
[1739374580762,3.2078,2608.6,2607.8,0.00575783]
[1739374580972,3.2078,2608.6,2607.8,3.21355783]
[1739374581169,0.76689,2608.1,2607.8,3.21355783]
[1739374581465,3.2078,2608.6,2607.8,3.21355783]
[1739374581670,0.76693,2607.9,2607.8,0.00575783]
[1739374583665,0.76702,2607.6,2607.5,3.2078]
[1739374584167,0.76715,2607.2,2607.1,3.2078]
[1739374584369,3.2078,2607.7,2606.8,3.2078]
[1739374584568,2.52548,2607.9,2606.9,3.2078]
[1739374584772,2.52548,2607.9,2606.8,4.89611498]
[1739374584773,0.76709,2607.4,2607.2,3.97492]
[1739374585175,0.76711,2607.4,2607.2,3.2078]
[1739374585376,0.76711,2607.3,2607.2,3.2078]
[1739374586373,0.00575783,2607.5,2607.2,3.2078]
[1739374586571,0.00575783,2607.5,2607.4,0.76708]
[1739374586876,0.00575783,2607.5,2607.4,5.74532626]
[1739374587075,0.6048,2608.5,2607.4,5.74532626]
[1739374587076,0.5818,2608.9,2607.4,11.17176111]
[1739374587276,0.7667,2608.7,2608.4,3.2078]
[1739374587479,0.7667,2608.7,2608.4,3.97456]
[1739374587672,0.7667,2608.7,2608.5,5.01361435]
[1739374587972,3.2078,2609.2,2608.5,5.01361435]
[1739374588180,1.91618,2609.5,2608.5,5.01361435]
[1739374588181,0.76659,2609.1,2608.8,0.76665]
[1739374588382,3.2078,2609.5,2608.7,3.2078]
[1739374588674,0.76663,2609.0,2608.8,4.91357165]
[1739374589175,1.91624,2609.4,2608.5,0.76674]
[1739374589473,0.76665,2608.9,2608.5,5.05241361]
[1739374589680,3.2078,2609.5,2608.6,3.2078]
[1739374589883,3.97429,2609.5,2609.1,0.76658]
[1739374590180,0.76654,2609.3,2608.9,3.97442]
[1739374590382,3.2078,2609.5,2608.9,3.2078]
[1739374590580,0.76652,2609.4,2609.0,5.79296082]
[1739374590875,0.6048,2609.7,2609.0,5.02635082]
[1739374591382,3.8052,2610.4,2609.3,3.2078]
[1739374591676,3.8052,2610.4,2609.9,3.2078]
[1739374591677,0.5974,2610.4,2609.9,3.2078]
[1739374591976,0.5974,2610.4,2609.4,7.14527297]
[1739374591977,0.76629,2610.1,2609.7,0.76639]
[1739374592170,0.76635,2609.9,2609.6,3.2078]
[1739374592366,3.8052,2610.4,2609.8,5.05827297]
[1739374592565,0.76634,2610.0,2609.7,5.73862835]
[1739374592980,3.2078,2610.4,2609.9,3.97413]
[1739374593181,0.76627,2610.2,2609.9,3.2078]
[1739374593678,3.2078,2610.4,2609.9,3.2078]
[1739374593869,0.76628,2610.2,2609.9,3.2078]
[1739374594070,3.2078,2610.4,2609.8,2.087]
[1739374594483,0.7663,2610.1,2609.8,2.087]
[1739374594782,3.2078,2610.4,2609.9,8.30238858]
[1739374594981,0.76624,2610.3,2609.9,8.30238858]
[1739374595282,5.12308,2610.8,2610.0,0.7663]
[1739374595481,3.2078,2610.8,2609.9,8.30238858]
[1739374595684,0.76623,2610.3,2610.1,5.00685779]
[1739374595878,0.76623,2610.3,2610.0,5.77315779]
[1739374596074,3.2078,2610.8,2610.0,5.00685779]
[1739374596382,1.91551,2610.4,2609.7,2.086]
[1739374596684,0.76625,2610.3,2610.0,0.76631]
[1739374596976,0.76625,2610.3,2610.1,0.76626]
[1739374596977,0.76623,2610.3,2610.1,0.76626]
[1739374597172,0.76629,2610.1,2609.9,3.97413]
[1739374597376,3.2078,2610.8,2609.7,2.086]
[1739374597683,0.7664,2609.8,2609.6,6.06023]
[1739374597877,0.7664,2609.8,2609.6,5.2938]
[1739374598077,0.7664,2609.8,2609.7,4.88637751]
[1739374598382,3.2078,2610.3,2609.7,4.88637751]
[1739374598787,0.76637,2609.9,2609.7,4.88637751]
[1739374598982,0.76643,2609.7,2609.3,3.2078]
[1739374599180,0.76639,2609.8,2609.6,0.76642]
[1739374599382,5.2938,2610.7,2609.6,8.10468444]
[1739374599588,0.76626,2610.2,2610.1,0.76628]
[1739374600084,7.20913,2610.7,2609.9,3.2078]
[1739374600280,0.76614,2610.6,2610.1,0.76627]
[1739374600485,3.2078,2610.7,2610.0,4.94287455]
[1739374600689,0.76625,2610.3,2610.1,0.76628]
[1739374601086,3.2078,2610.7,2610.0,4.92963877]
[1739374601285,0.76627,2610.2,2610.1,0.76629]
[1739374601587,5.12309,2610.7,2610.0,4.98592337]
[1739374601588,0.76629,2610.1,2610.0,4.98592337]
[1739374601788,0.76627,2610.2,2610.0,0.76629]
[1739374602082,0.76632,2610.0,2609.9,3.2078]
[1739374602287,0.76641,2609.7,2609.6,3.2078]
[1739374602882,5.12353,2610.1,2609.5,0.00575783]
[1739374603188,0.76643,2609.6,2609.5,0.00575783]
[1739374603387,0.76643,2609.6,2609.5,7.83e-06]
[1739374603586,8.85143,2609.6,2609.5,7.83e-06]
[1739374604392,2.85143,2609.6,2609.5,7.83e-06]
[1739374604686,0.76643,2609.6,2609.5,7.83e-06]
[1739374605686,9.97423,2609.6,2609.5,7.83e-06]
[1739374606288,3.97423,2609.6,2609.5,7.83e-06]
[1739374609592,0.76643,2609.6,2609.5,0.76646783]
[1739374609790,0.0057125,2609.8,2609.5,7.83e-06]
[1739374609988,0.0057125,2609.8,2609.7,0.76641]
[1739374610389,5.12324,2610.5,2609.7,11.06560265]
[1739374610390,0.76627,2610.2,2609.7,11.06560265]
[1739374610595,0.76627,2610.2,2610.0,3.9741]
[1739374610898,3.2078,2610.5,2610.0,3.2078]
[1739374611199,0.76629,2610.1,2610.0,3.2078]
[1739374611600,0.76627,2610.2,2610.0,3.9741]
[1739374612000,3.2078,2610.5,2610.0,3.2078]
[1739374612299,3.2078,2610.5,2609.6,0.598]
[1739374612498,1.91565,2610.3,2609.6,3.8058]
[1739374612698,0.76634,2610.0,2609.8,0.76637]
[1739374612994,1.91552,2610.4,2609.6,3.8058]
[1739374613296,0.7664,2609.8,2609.7,5.00763096]
[1739374613500,1.91565,2610.2,2609.7,5.00763096]
[1739374613501,0.76633,2610.0,2609.8,0.76637]
[1739374613795,0.76632,2610.0,2609.8,0.76636]
[1739374614000,5.12327,2610.5,2609.9,0.76634]
[1739374614200,0.76631,2610.1,2609.9,0.76634]
[1739374614502,0.7664,2609.8,2609.7,5.01869722]
[1739374614694,0.76643,2609.6,2609.5,2.08500783]
[1739374614896,0.76643,2609.6,2609.5,7.83e-06]
[1739374622113,8.00785853,2609.6,2609.5,7.83e-06]
[1739374622312,14.00785853,2609.6,2609.5,7.83e-06]
[1739374623405,14.00785853,2609.6,2607.0,0.384]
[1739374623406,0.7669,2608.0,2607.9,3.2078]
[1739374623708,0.7669,2608.0,2607.8,0.5803]
[1739374623709,0.76692,2608.0,2607.8,0.5803]
[1739374624003,3.2078,2608.5,2607.8,0.5803]
[1739374624507,0.7669,2608.0,2607.9,0.00574658]
[1739374625896,0.76686,2608.2,2607.9,3.98047658]
[1739374626102,0.76686,2608.2,2607.9,8.93058503]
[1739374626302,0.76678,2608.5,2607.9,8.16365503]
[1739374626610,5.8709,2609.3,2608.4,3.2078]
[1739374626806,5.8709,2609.3,2608.2,4.03362853]
[1739374626807,3.8055,2610.0,2609.0,3.2078]
[1739374627011,3.8055,2610.0,2609.4,0.76648]
[1739374627012,0.7664,2609.8,2609.4,0.76648]
[1739374627404,3.2078,2610.0,2609.4,0.76648]
[1739374627606,0.7663,2610.1,2609.7,0.76639]
[1739374627904,4.03362853,2610.4,2609.6,3.2078]
[1739374628111,0.76639,2609.8,2609.5,5.05825711]
[1739374628312,0.76639,2609.8,2609.4,2.85147]
[1739374628509,3.2078,2610.3,2609.4,2.085]
[1739374628709,0.76641,2609.7,2609.5,4.91546771]
[1739374629012,0.76641,2609.8,2609.5,4.91546771]
[1739374629209,3.2078,2610.3,2609.5,4.91546771]
[1739374629511,0.76639,2609.8,2609.5,4.91546771]
[1739374629712,3.2078,2610.3,2609.5,4.91546771]
[1739374629713,0.76636,2609.9,2609.5,4.91546771]
[1739374629908,3.2078,2610.3,2609.6,3.2078]
[1739374630115,0.76639,2609.8,2609.5,4.91546771]
[1739374630309,3.2078,2610.0,2609.3,0.19232095]
[1739374630612,0.76649,2609.4,2609.3,0.19232095]
[1739374631114,0.76652,2609.3,2609.2,3.21354658]
[1739374631612,0.76652,2609.3,2609.2,0.00574658]
[1739374631802,3.97432,2609.3,2609.2,0.00574658]
[1739374632108,6.05832,2609.3,2609.2,6.58e-06]
[1739374632410,12.05832,2609.3,2609.2,6.58e-06]
[1739374632609,6.05832,2609.3,2609.2,6.58e-06]
[1739374635012,3.97432,2609.3,2609.2,6.58e-06]
[1739374636108,0.00574658,2609.5,2609.4,0.76649]
[1739374636313,0.00574658,2609.5,2609.2,6.58e-06]
[1739374636314,0.76652,2609.3,2609.2,6.58e-06]
[1739374637512,6.76652,2609.3,2609.2,6.58e-06]
[1739374637911,0.76652,2609.3,2609.2,6.58e-06]
[1739374639115,3.21354658,2609.5,2609.2,6.58e-06]
[1739374639416,0.76651,2609.4,2609.2,0.76654658]
[1739374639619,0.76652,2609.3,2609.2,6.58e-06]
[1739374640412,0.7665,2609.4,2609.2,0.76652658]
[1739374640609,0.00574658,2609.5,2609.2,6.58e-06]
[1739374641114,0.76652,2609.3,2609.2,6.58e-06]
[1739374641616,6.76652,2609.3,2609.2,6.58e-06]
[1739374641916,2.85052,2609.3,2609.2,6.58e-06]
[1739374642319,12.05832,2609.3,2609.2,6.58e-06]
[1739374643714,12.12487592,2609.3,2609.2,6.58e-06]
[1739374643913,12.05832,2609.3,2609.2,6.58e-06]
[1739374644108,6.12487883,2609.3,2609.2,6.58e-06]
[1739374644321,6.05832,2609.3,2609.2,6.58e-06]
[1739374644713,2.85052,2609.3,2609.2,6.58e-06]
[1739374644913,6.05832,2609.3,2609.2,6.58e-06]
[1739374645417,2.85052,2609.3,2609.2,6.58e-06]
[1739374645618,0.76652,2609.3,2609.2,6.58e-06]
[1739374647814,3.97432,2609.3,2609.2,6.58e-06]
[1739374648019,9.97432,2609.3,2609.2,6.58e-06]
[1739374649422,10.04087746,2609.3,2609.2,6.58e-06]
[1739374650132,10.40044867,2609.3,2609.2,6.58e-06]
[1739374650821,10.33389121,2609.3,2609.2,6.58e-06]
[1739374651125,10.40045466,2609.3,2609.2,6.58e-06]
[1739374651823,4.40045466,2609.3,2609.2,6.58e-06]
[1739374652026,12.48345466,2609.3,2609.2,6.58e-06]
[1739374652425,0.76693,2607.9,2607.8,0.6033]
[1739374655022,0.76699,2607.7,2607.6,3.76444658]
[1739374656321,0.76699,2607.7,2607.6,3.21354658]
[1739374659531,10.35483689,2608.1,2607.6,3.21354658]
[1739374659836,6.31575658,2608.1,2607.6,3.21354658]
[1739374660137,0.76699,2607.7,2607.6,3.21354658]
[1739374660928,0.76699,2607.7,2607.6,0.00574658]
[1739374661529,0.76699,2607.7,2607.6,6.58e-06]
[1739374662626,6.76699,2607.7,2607.6,6.58e-06]
[1739374663022,0.76699,2607.7,2607.6,6.58e-06]
[1739374665644,0.00574658,2608.1,2607.6,3.20780658]
[1739374665936,0.76693,2607.9,2607.8,0.76695]
[1739374666130,0.76693,2608.0,2607.9,0.76693]
[1739374666436,0.76694,2607.9,2607.8,0.76695]
[1739374666739,0.76696,2607.8,2607.7,1.35519]
[1739374667038,0.76696,2607.8,2607.7,0.5882]
[1739374667237,0.76696,2607.8,2607.7,1.35519]
[1739374667435,0.76696,2607.8,2607.7,0.5882]
[1739374668359,1.92297658,2608.1,2607.6,6.58e-06]
[1739374668571,0.76699,2607.7,2607.6,6.58e-06]
[1739374669492,3.97479,2607.7,2607.6,6.58e-06]
[1739374669761,0.76726,2606.8,2606.7,1.1434]
[1739374670169,0.76726,2606.8,2606.7,1.91069]
[1739374670365,3.2078,2607.3,2606.7,1.1434]
[1739374670554,0.76725,2606.9,2606.8,0.76725]
[1739374670753,1.91774,2607.4,2606.7,6.05595612]
[1739374670954,0.76712,2607.3,2607.2,0.76712]
[1739374671153,1.91748,2607.8,2606.9,5.2908]
[1739374671359,0.76711,2607.4,2607.3,0.7671]
[1739374671557,3.2078,2608.0,2607.1,0.5866]
[1739374671850,1.91734,2607.9,2607.2,8.12048651]
[1739374672159,0.76702,2607.6,2607.5,0.76705]
[1739374672653,1.92297658,2608.1,2607.1,2.5045]
[1739374672654,3.2078,2607.8,2607.1,0.5866]
[1739374672943,0.76726,2606.8,2606.7,4.3512]
[1739374673438,3.50975036,2608.1,2606.7,9.7597]
[1739374673643,1.91727,2608.0,2607.4,3.2078]
[1739374673835,0.76704,2607.6,2607.5,0.5739]
[1739374674641,0.76702,2607.6,2607.5,1.34094]
[1739374674832,1.91727,2608.0,2607.5,1.168]
[1739374675345,0.76702,2607.6,2607.5,1.168]
[1739374676047,3.2078,2607.8,2606.7,3.8161]
[1739374676241,4.03908031,2607.9,2606.7,3.8161]
[1739374676242,0.76723,2606.9,2606.8,0.562]
[1739374678342,5.91808,2607.7,2606.8,0.562]
[1739374678343,0.76721,2607.0,2606.9,0.76722]
[1739374678551,0.76718,2607.1,2607.0,0.76718]
[1739374678747,5.12523,2607.8,2607.0,14.28951549]
[1739374679047,0.76717,2607.1,2607.0,9.05669549]
[1739374679245,0.76717,2607.1,2607.0,3.2078]
[1739374679451,5.12544,2607.5,2606.9,0.5629]
[1739374679744,0.76723,2606.9,2606.8,0.562]
[1739374680245,1.91792,2607.2,2606.6,0.00574658]
[1739374680438,0.76728,2606.8,2606.6,0.00574658]
[1739374680642,0.76724,2606.9,2606.8,0.76725]
[1739374680838,3.2078,2607.6,2606.9,0.5642]
[1739374681041,0.7672,2607.0,2606.9,1.33142]
[1739374681250,0.7672,2607.0,2606.9,0.5642]
[1739374681642,0.7672,2607.0,2606.6,0.00574658]
[1739374681643,0.76729,2606.7,2606.6,0.00574658]
[1739374683049,3.2078,2606.9,2605.9,0.5625]
[1739374683253,0.76749,2606.0,2605.9,0.5625]
[1739374683657,3.2078,2606.6,2606.0,0.76748]
[1739374683955,3.2078,2606.6,2606.1,8.30290936]
[1739374684148,3.99992,2607.2,2606.4,3.2078]
[1739374684350,0.00574658,2606.6,2606.5,0.76735]
[1739374684552,0.00574658,2606.6,2606.5,5.86245936]
[1739374684754,0.00574658,2606.6,2606.5,11.86245936]
[1739374684959,0.76712,2607.3,2607.1,0.76716]
[1739374685149,0.76715,2607.2,2607.0,3.97499]
[1739374685460,0.76717,2607.1,2607.0,3.2078]
[1739374685757,0.76723,2606.9,2606.7,5.84845128]
[1739374685949,1.91778,2607.3,2606.6,5.8523]
[1739374686150,0.00574658,2607.1,2606.6,5.8523]
[1739374686346,0.00574658,2607.1,2606.7,5.03107606]
[1739374686554,0.7672,2607.0,2606.9,0.76723]
[1739374686754,0.76724,2606.9,2606.7,5.79835606]
[1739374687057,0.00574658,2607.1,2606.6,5.8523]
[1739374687255,0.00574658,2607.1,2606.6,6.6196]
[1739374687256,0.76727,2606.8,2606.6,6.6196]
[1739374687550,0.00574658,2607.1,2606.6,0.5625]
[1739374687551,0.76729,2606.7,2606.6,0.5625]
[1739374687949,1.91801,2607.0,2606.3,3.97519]
[1739374688249,0.76738,2606.4,2606.3,3.2078]
[1739374688444,0.76738,2606.4,2606.2,4.60321]
[1739374688642,0.76737,2606.5,2606.3,0.7674]
[1739374688845,0.76737,2606.5,2606.3,4.93769099]
[1739374689052,0.76743,2606.2,2606.0,3.2078]
[1739374689856,0.76742,2606.3,2606.1,0.77319658]
[1739374690055,2.082,2607.0,2606.1,0.00574658]
[1739374690248,3.79264658,2607.1,2606.3,3.2078]
[1739374690559,0.76731,2606.7,2606.4,0.76738]
[1739374690745,3.79264658,2607.1,2606.6,3.2078]
[1739374690949,3.21354658,2607.1,2606.6,3.2078]
[1739374691151,0.76729,2606.7,2606.6,3.2078]
[1739374691559,3.21354658,2607.1,2606.6,3.97512]
[1739374691758,0.76729,2606.7,2606.6,3.2078]
[1739374692658,0.76725,2606.9,2606.7,0.76729]
[1739374693056,0.76727,2606.8,2606.6,8.90286288]
[1739374693257,3.21354658,2607.1,2606.8,4.92776288]
[1739374693258,0.77293658,2607.1,2606.8,4.92776288]
[1739374693566,0.7672,2607.0,2606.9,3.8014]
[1739374694054,0.00574658,2607.1,2606.9,3.8014]
[1739374694254,0.00574658,2607.1,2607.0,0.7672]
[1739374695057,0.7672,2607.0,2606.9,0.5936]
[1739374695253,0.00574658,2607.1,2606.9,3.8014]
[1739374695455,0.00574658,2607.1,2607.0,0.7672]
[1739374696059,0.5503,2608.0,2607.0,12.98880653]
[1739374696257,0.76694,2607.9,2607.7,3.2078]
[1739374696462,1.91702,2608.4,2607.4,5.2898]
[1739374696463,1.91705,2608.3,2607.4,5.2898]
[1739374696764,0.76698,2607.8,2607.5,0.76703]
[1739374696962,0.76695,2607.9,2607.6,0.76701]
[1739374697260,0.76695,2607.9,2607.7,0.1957711]
[1739374697461,0.00574658,2608.0,2607.7,0.1957711]
[1739374698164,0.77266658,2608.0,2607.8,0.76695]
[1739374698562,0.00574658,2608.0,2607.9,0.76693]
[1739374698767,0.00574658,2608.0,2607.9,5.69967767]
[1739374698963,0.00574658,2608.0,2607.9,0.76693]
[1739374700455,1.90805,2608.6,2608.0,1.91727]
[1739374700664,1.90805,2608.6,2608.4,0.76677]
[1739374700859,0.5931,2609.0,2608.5,0.76676]
[1739374701061,1.1461,2609.0,2608.2,3.2078]
[1739374701357,1.1461,2609.0,2608.3,5.02995643]
[1739374701566,0.76681,2608.4,2608.2,0.76684]
[1739374701867,5.12453,2608.8,2607.9,5.2888]
[1739374702168,0.76683,2608.3,2608.1,0.76686]
[1739374702565,0.76681,2608.4,2608.2,0.76683]
[1739374702876,3.2078,2608.8,2607.9,5.2888]
[1739374703066,3.2078,2608.8,2608.2,3.2078]
[1739374703268,0.76669,2608.8,2608.6,0.76671]
[1739374703568,3.2078,2608.7,2608.2,3.2078]
[1739374703767,3.2078,2608.7,2607.6,1.91752]
[1739374703768,2.48519,2608.7,2607.9,3.2078]
[1739374704167,0.7669,2608.1,2608.0,0.7669]
[1739374704363,5.69299,2608.7,2607.9,3.2078]
[1739374704571,0.7668,2608.4,2608.2,0.76682]
[1739374704772,0.76677,2608.5,2608.2,3.2078]
[1739374704973,0.5684,2608.7,2608.2,3.2078]
[1739374705165,0.5684,2608.7,2607.9,5.12507]
[1739374705474,0.76678,2608.5,2608.4,0.76679]
[1739374705662,0.5684,2608.7,2608.2,3.2078]
[1739374706060,2.48519,2608.7,2608.2,0.76683]
[1739374706258,2.48519,2608.7,2607.9,3.2078]
[1739374706259,0.76678,2608.5,2607.9,3.2078]
[1739374706461,0.76679,2608.4,2608.3,0.7668]
[1739374706771,0.76679,2608.4,2608.2,0.76682]
[1739374706967,1.91683,2608.6,2607.9,3.2078]
[1739374707270,1.91683,2608.6,2607.7,0.7898711]
[1739374707271,0.76694,2607.9,2607.8,0.76695]
[1739374707568,0.76691,2608.0,2607.9,0.76692]
[1739374708170,5.20516662,2609.0,2608.6,0.76673]
[1739374708371,1.91515,2610.9,2609.0,3.2078]
[1739374708561,7.24616662,2611.0,2609.0,3.2078]
[1739374708562,0.76623,2610.3,2610.2,3.2078]
[1739374708765,0.7662,2610.4,2610.2,3.2078]
[1739374709059,0.76613,2610.7,2610.2,4.16861983]
[1739374709261,0.76613,2610.7,2610.5,3.2078]
[1739374709464,1.185,2611.0,2610.6,4.03836662]
[1739374709661,0.76601,2611.1,2610.9,7.24616662]
[1739374709869,1.185,2611.1,2610.7,3.2078]
[1739374710171,3.2078,2611.8,2611.0,3.2078]
[1739374710379,3.2078,2611.5,2610.9,4.03836662]
[1739374710670,3.2078,2612.0,2611.3,3.2078]
[1739374710969,4.03836662,2613.2,2611.9,3.2078]
[1739374711268,4.03836662,2613.2,2612.5,3.2078]
[1739374711269,0.6048,2613.2,2612.5,3.2078]
[1739374711471,0.76534,2613.4,2613.0,3.2078]
[1739374711668,0.6048,2614.2,2613.3,3.2078]
[1739374711867,2.079,2614.1,2613.3,3.2078]
[1739374712068,0.6048,2614.2,2613.3,3.2078]
[1739374712270,0.76528,2613.6,2613.5,0.00574658]
[1739374712671,2.079,2613.9,2613.5,0.00574658]
[1739374712863,3.2078,2613.7,2612.7,4.47449766]
[1739374713068,3.97314,2613.4,2612.7,4.47449766]
[1739374713271,2.079,2613.9,2612.6,3.2078]
[1739374713272,3.2078,2613.6,2612.6,3.2078]
[1739374713573,3.2078,2612.9,2612.3,3.2078]
[1739374713872,3.2078,2612.9,2612.1,0.76568]
[1739374714069,0.00574658,2612.9,2612.3,0.00574658]
[1739374714265,0.00574658,2612.9,2612.3,0.77136658]
[1739374714472,3.2078,2612.7,2612.3,0.00574658]
[1739374714666,3.97341,2612.4,2612.3,0.00574658]
[1739374714865,3.2078,2612.4,2612.3,0.00574658]
[1739374715065,3.2078,2612.4,2611.6,3.97362]
[1739374715376,3.2078,2611.8,2611.3,3.2078]
[1739374715578,0.76578,2611.9,2611.1,0.76597]
[1739374715766,0.76578,2611.9,2610.7,4.47449766]
[1739374715767,2.84373,2612.0,2611.3,3.2078]
[1739374716075,2.078,2612.0,2611.3,3.97373]
[1739374716269,3.97351,2612.1,2611.3,3.2078]
[1739374716270,3.2078,2612.1,2611.3,3.2078]
[1739374716467,0.00574658,2611.9,2611.4,0.00574658]
[1739374717164,3.2078,2611.5,2611.1,4.47449766]
[1739374717375,3.2078,2611.5,2610.5,0.29085532]
[1739374717376,2.078,2611.4,2610.5,3.49865532]
[1739374717572,2.078,2611.4,2610.6,0.76611]
[1739374717775,2.078,2611.4,2610.5,3.2078]
[1739374717776,2.84391,2611.4,2610.8,3.2078]
[1739374717976,6.05171,2611.4,2610.8,3.97388]
[1739374718173,2.84391,2611.4,2610.8,3.97388]
[1739374718368,5.2858,2611.4,2610.8,0.00574658]
[1739374718676,0.766,2611.1,2610.8,0.00574658]
[1739374718871,0.76594,2611.3,2610.8,0.00574658]
[1739374719067,1.7799,2611.7,2610.8,0.00574658]
[1739374719068,1.7799,2611.7,2611.0,3.2078]
[1739374719266,0.00574658,2611.9,2611.3,3.2078]
[1739374719478,0.00574658,2611.9,2611.6,0.76583]
[1739374719777,0.00574658,2611.9,2611.4,0.76588]
[1739374719968,0.00574658,2611.9,2611.2,3.2078]
[1739374720167,0.77151658,2611.9,2611.3,0.76591]
[1739374720371,0.77151658,2611.9,2611.3,5.01510555]
[1739374720569,0.00574658,2611.9,2611.6,0.76583]
[1739374720772,0.00574658,2611.9,2611.5,3.97365]
[1739374721580,0.00574658,2611.9,2611.8,3.97359]
[1739374721977,3.2078,2612.9,2612.3,0.76564]
[1739374722174,0.76554,2612.7,2612.2,0.76566]
[1739374722369,3.2078,2612.9,2612.3,3.2078]
[1739374722370,0.76551,2612.8,2612.3,3.2078]
[1739374722675,3.2078,2612.7,2611.9,0.5941]
[1739374722977,0.76569,2612.2,2611.9,0.5941]
[1739374723180,2.08274658,2612.6,2612.0,0.00574658]
[1739374723382,0.7657,2612.1,2612.0,0.00574658]
[1739374723678,6.0505,2612.1,2612.0,0.00574658]
[1739374723868,0.76587,2611.6,2611.2,3.97375]
[1739374724072,0.76584,2611.7,2611.3,0.76593]
[1739374724378,5.2848,2612.1,2611.2,3.97375]
[1739374724379,0.76588,2611.5,2611.2,3.97375]
[1739374724586,0.76593,2611.4,2611.0,0.76601]
[1739374724878,0.76587,2611.6,2611.2,3.2078]
[1739374725181,2.077,2612.0,2611.2,3.2078]
[1739374725388,0.76592,2611.4,2611.0,0.76601]
[1739374725583,3.2078,2611.5,2610.9,0.00574658]
[1739374725878,4.47449766,2611.8,2610.9,0.00574658]
[1739374725879,0.76602,2611.0,2610.9,0.00574658]
[1739374726382,0.00574658,2611.2,2611.0,0.76602]
[1739374726581,0.00574658,2611.2,2611.0,0.76601]
[1739374726881,0.00574658,2611.2,2610.9,0.00574658]
[1739374727086,0.77172658,2611.2,2610.9,0.77178658]
[1739374727276,0.00574658,2611.2,2610.9,0.00574658]
[1739374727478,0.77172658,2611.2,2610.9,0.77177658]
[1739374727872,0.77172658,2611.2,2611.0,0.76602]
[1739374728073,0.77172658,2611.2,2610.9,0.77177658]
[1739374728280,0.00574658,2611.2,2610.9,0.00574658]
[1739374728481,0.77172658,2611.2,2611.0,3.2078]
[1739374728983,0.00574658,2611.2,2611.0,3.2078]
[1739374729187,0.00574658,2611.2,2611.1,6.37260378]
[1739374729387,0.594,2612.3,2611.5,0.76586]
[1739374729585,0.76582,2611.7,2611.6,3.2078]
[1739374729882,0.76581,2611.8,2611.6,3.2078]
[1739374730082,1.91384,2612.7,2611.6,5.2848]
[1739374730392,5.2848,2612.9,2612.0,3.2078]
[1739374730591,0.00574658,2612.4,2612.0,3.2078]
[1739374730881,0.00574658,2612.4,2612.3,3.2078]
[1739374731277,3.8018,2613.4,2612.3,14.0817247]
[1739374731478,0.76545,2613.0,2612.7,3.9733]